[Event "*** Titled Tuesday Blitz"]
[Site "Chess.com"]
[Date "2021.04.06"]
[Round "10"]
[White "Borsuk_Konstantin"]
[Black "Nf3c5"]
[Result "0-1"]
[WhiteElo "2670"]
[BlackElo "2571"]
[TimeControl "180+1"]
[EndTime "11:57:31 PDT"]
[Termination "Nf3c5 won on time"]

1. d4 {[%clk 0:03:00.9]} 1... Nf6 {[%clk 0:02:58.2]} 2. c4 {[%clk 0:03:00.7]}
2... g6 {[%clk 0:02:58]} 3. Nc3 {[%clk 0:03:00.9]} 3... d5 {[%clk 0:02:58.4]} 4.
Nf3 {[%clk 0:03:01.2]} 4... Bg7 {[%clk 0:02:58.1]} 5. Bg5 {[%clk 0:03:01.8]}
5... dxc4 {[%clk 0:02:56.1]} 6. e3 {[%clk 0:02:57.3]} 6... c5 {[%clk 0:02:53.9]}
7. dxc5 {[%clk 0:02:56]} 7... Qa5 {[%clk 0:02:45.7]} 8. Bxc4 {[%clk 0:02:42.8]}
8... Qxc5 {[%clk 0:02:37.1]} 9. Bxf6 {[%clk 0:02:36.1]} 9... Bxf6 {[%clk
0:02:34.4]} 10. Qd5 {[%clk 0:02:34.9]} 10... Bxc3+ {[%clk 0:02:20]} 11. bxc3
{[%clk 0:02:34.2]} 11... Qxd5 {[%clk 0:02:17.9]} 12. Bxd5 {[%clk 0:02:35.1]}
12... e6 {[%clk 0:02:16.9]} 13. Be4 {[%clk 0:02:31.4]} 13... Nd7 {[%clk
0:02:16.3]} 14. Rb1 {[%clk 0:02:23.8]} 14... Nc5 {[%clk 0:02:15.7]} 15. Nd2
{[%clk 0:02:21.9]} 15... Rb8 {[%clk 0:02:10.1]} 16. Bc2 {[%clk 0:01:59.8]} 16...
b6 {[%clk 0:02:05.9]} 17. Ne4 {[%clk 0:01:54.9]} 17... Nxe4 {[%clk 0:01:40.7]}
18. Bxe4 {[%clk 0:01:55.8]} 18... Ba6 {[%clk 0:01:41.2]} 19. Kd2 {[%clk
0:01:35.7]} 19... Ke7 {[%clk 0:01:40.1]} 20. Kc2 {[%clk 0:01:30.4]} 20... Rhc8
{[%clk 0:01:38.8]} 21. Rhd1 {[%clk 0:01:25.4]} 21... Rc5 {[%clk 0:01:37.4]} 22.
Bd3 {[%clk 0:01:25.2]} 22... Bb7 {[%clk 0:01:36.2]} 23. f3 {[%clk 0:01:25.1]}
23... Bd5 {[%clk 0:01:34.4]} 24. e4 {[%clk 0:01:14.8]} 24... Bb7 {[%clk
0:01:21.5]} 25. Bb5 {[%clk 0:01:12.8]} 25... Rc7 {[%clk 0:01:19.9]} 26. Rd3
{[%clk 0:01:09.7]} 26... a6 {[%clk 0:01:14.7]} 27. Ba4 {[%clk 0:01:08.7]} 27...
b5 {[%clk 0:01:11.3]} 28. Bb3 {[%clk 0:01:08.7]} 28... Rbc8 {[%clk 0:01:11.7]}
29. Kb2 {[%clk 0:01:07.4]} 29... a5 {[%clk 0:01:07.5]} 30. a3 {[%clk 0:01:06.5]}
30... Ba6 {[%clk 0:01:05.4]} 31. Re3 {[%clk 0:01:01.2]} 31... g5 {[%clk
0:01:05.1]} 32. Rd1 {[%clk 0:00:57.6]} 32... h5 {[%clk 0:01:03.3]} 33. e5 {[%clk
0:00:56.2]} 33... Rc6 {[%clk 0:00:57.5]} 34. Rd4 {[%clk 0:00:50.4]} 34... R8c7
{[%clk 0:00:47.9]} 35. g3 {[%clk 0:00:49.3]} 35... Rc5 {[%clk 0:00:41.3]} 36. f4
{[%clk 0:00:43.4]} 36... g4 {[%clk 0:00:38.6]} 37. Rd2 {[%clk 0:00:40.4]} 37...
Bb7 {[%clk 0:00:38.2]} 38. Red3 {[%clk 0:00:38.1]} 38... Be4 {[%clk 0:00:35.9]}
39. Re3 {[%clk 0:00:38.5]} 39... Bf5 {[%clk 0:00:31]} 40. Rd4 {[%clk 0:00:36.1]}
40... Rc8 {[%clk 0:00:30.1]} 41. a4 {[%clk 0:00:33.2]} 41... h4 {[%clk
0:00:28.9]} 42. Ka3 {[%clk 0:00:28.4]} 42... Rh8 {[%clk 0:00:27.5]} 43. axb5
{[%clk 0:00:26.3]} 43... Rxb5 {[%clk 0:00:28.4]} 44. Ba4 {[%clk 0:00:26.1]}
44... Rb7 {[%clk 0:00:27.6]} 45. c4 {[%clk 0:00:21]} 45... hxg3 {[%clk
0:00:27.2]} 46. hxg3 {[%clk 0:00:21.2]} 46... Rh1 {[%clk 0:00:26.4]} 47. Rd1
{[%clk 0:00:21.1]} 47... Rh2 {[%clk 0:00:24.4]} 48. c5 {[%clk 0:00:17.1]} 48...
Rb4 {[%clk 0:00:18.9]} 49. Rd7+ {[%clk 0:00:13.2]} 49... Kf8 {[%clk 0:00:18.8]}
50. Rd8+ {[%clk 0:00:12]} 50... Kg7 {[%clk 0:00:18.8]} 51. Rc3 {[%clk
0:00:09.5]} 51... Bb1 {[%clk 0:00:17]} 52. Bb3 {[%clk 0:00:08.4]} 52... Rh1
{[%clk 0:00:09.5]} 53. Rd1 {[%clk 0:00:05.5]} 53... Rxb3+ {[%clk 0:00:07.5]} 54.
Kxb3 {[%clk 0:00:04.9]} 54... Rxd1 {[%clk 0:00:08.4]} 55. c6 {[%clk 0:00:02.9]}
55... Be4 {[%clk 0:00:03.2]} 56. c7 {[%clk 0:00:01.1]} 56... Bb7 {[%clk
0:00:03.4]} 57. Ka4 {[%clk 0:00:01.7]} 57... Bc8 {[%clk 0:00:03.7]} 58. Kxa5
{[%clk 0:00:01.7]} 58... Rb1 {[%clk 0:00:03.6]} 0-1

[Event "*** Titled Tuesday Blitz"]
[Site "Chess.com"]
[Date "2021.04.06"]
[Round "10"]
[White "RobertoJBM"]
[Black "MartinHollan"]
[Result "1-0"]
[WhiteElo "2700"]
[BlackElo "2565"]
[TimeControl "180+1"]
[EndTime "11:57:33 PDT"]
[Termination "RobertoJBM won by resignation"]

1. d4 {[%clk 0:03:00.9]} 1... Nf6 {[%clk 0:02:59.8]} 2. Nf3 {[%clk 0:02:59]}
2... e6 {[%clk 0:03:00]} 3. e3 {[%clk 0:02:59.9]} 3... c5 {[%clk 0:02:59.4]} 4.
Bd3 {[%clk 0:02:56.4]} 4... Nc6 {[%clk 0:02:59.3]} 5. O-O {[%clk 0:02:55.2]}
5... d5 {[%clk 0:02:59.2]} 6. c3 {[%clk 0:02:55]} 6... Bd6 {[%clk 0:02:58.8]} 7.
Nbd2 {[%clk 0:02:55]} 7... e5 {[%clk 0:02:56.5]} 8. dxe5 {[%clk 0:02:54.2]} 8...
Nxe5 {[%clk 0:02:56.4]} 9. Nxe5 {[%clk 0:02:55.1]} 9... Bxe5 {[%clk 0:02:56.5]}
10. f4 {[%clk 0:02:55.7]} 10... Bc7 {[%clk 0:02:55.5]} 11. e4 {[%clk 0:02:55.8]}
11... c4 {[%clk 0:02:34.3]} 12. Bc2 {[%clk 0:02:52.7]} 12... O-O {[%clk
0:02:14]} 13. Kh1 {[%clk 0:02:30.1]} 13... Bg4 {[%clk 0:02:11.5]} 14. Qe1 {[%clk
0:02:26.3]} 14... dxe4 {[%clk 0:02:08.7]} 15. Nxc4 {[%clk 0:02:17.8]} 15... Re8
{[%clk 0:02:08.2]} 16. Ne5 {[%clk 0:02:04.9]} 16... Bxe5 {[%clk 0:02:01.4]} 17.
fxe5 {[%clk 0:02:04.4]} 17... Rxe5 {[%clk 0:02:01.7]} 18. Bf4 {[%clk 0:02:01.3]}
18... Rb5 {[%clk 0:01:48.5]} 19. Bb3 {[%clk 0:01:58.6]} 19... Bh5 {[%clk
0:01:40.6]} 20. Qg3 {[%clk 0:01:53.1]} 20... Bg6 {[%clk 0:01:39.3]} 21. Be3
{[%clk 0:01:38.7]} 21... Rf5 {[%clk 0:01:18]} 22. Bd4 {[%clk 0:01:35.1]} 22...
Rxf1+ {[%clk 0:01:14.7]} 23. Rxf1 {[%clk 0:01:36]} 23... Qe7 {[%clk 0:01:14.6]}
24. Qg5 {[%clk 0:01:30.1]} 24... Re8 {[%clk 0:00:51.6]} 25. Ba4 {[%clk 0:01:08]}
25... Ra8 {[%clk 0:00:12.5]} 26. h4 {[%clk 0:01:06.5]} 26... e3 {[%clk
0:00:11.3]} 27. Qxe3 {[%clk 0:00:56.2]} 27... Qxe3 {[%clk 0:00:10.1]} 28. Bxe3
{[%clk 0:00:57.1]} 28... Ng4 {[%clk 0:00:09.7]} 29. Bd4 {[%clk 0:00:54.3]} 29...
f6 {[%clk 0:00:10.1]} 30. Re1 {[%clk 0:00:47.7]} 30... h5 {[%clk 0:00:09.4]} 31.
Re7 {[%clk 0:00:45.5]} 31... b6 {[%clk 0:00:09.5]} 32. Kg1 {[%clk 0:00:42.1]}
32... Kh7 {[%clk 0:00:05.1]} 33. Bd1 {[%clk 0:00:38.1]} 33... b5 {[%clk
0:00:03]} 34. Bxg4 {[%clk 0:00:36.7]} 34... hxg4 {[%clk 0:00:02.9]} 35. Bxf6
{[%clk 0:00:37.1]} 35... Rg8 {[%clk 0:00:02.6]} 36. Rxa7 {[%clk 0:00:35.2]}
36... b4 {[%clk 0:00:02]} 37. cxb4 {[%clk 0:00:34.4]} 37... Bb1 {[%clk
0:00:02.2]} 38. a4 {[%clk 0:00:33]} 38... Kg6 {[%clk 0:00:02.6]} 39. Bc3 {[%clk
0:00:33.1]} 39... Kf5 {[%clk 0:00:03]} 40. Rxg7 {[%clk 0:00:31.8]} 40... Re8
{[%clk 0:00:02.6]} 41. Rf7+ {[%clk 0:00:27.3]} 41... Ke4 {[%clk 0:00:02.9]} 42.
Kh2 {[%clk 0:00:26.9]} 42... Bd3 {[%clk 0:00:02.5]} 43. Kg3 {[%clk 0:00:26.6]}
43... Kd5 {[%clk 0:00:02.8]} 44. Rf4 {[%clk 0:00:26.9]} 44... Be2 {[%clk
0:00:02.8]} 45. Rd4+ {[%clk 0:00:25.8]} 45... Kc6 {[%clk 0:00:02.7]} 46. b5+
{[%clk 0:00:26.2]} 46... Kb7 {[%clk 0:00:02.6]} 47. h5 {[%clk 0:00:26.3]} 47...
Re3+ {[%clk 0:00:02.5]} 48. Kf2 {[%clk 0:00:25.4]} 48... Re7 {[%clk 0:00:03.2]}
49. g3 {[%clk 0:00:24.1]} 49... Bf3 {[%clk 0:00:03.3]} 50. Rd2 {[%clk
0:00:21.7]} 50... Rh7 {[%clk 0:00:03.5]} 51. Ke3 {[%clk 0:00:19.2]} 51... Rxh5
{[%clk 0:00:03.8]} 52. Bd4 {[%clk 0:00:17.9]} 52... Kc8 {[%clk 0:00:04.2]} 53.
b6 {[%clk 0:00:16.6]} 53... Rd5 {[%clk 0:00:04.4]} 54. Rc2+ {[%clk 0:00:16.5]}
54... Kb7 {[%clk 0:00:04.9]} 55. b4 {[%clk 0:00:16.7]} 55... Kb8 {[%clk
0:00:05]} 56. Rc7 {[%clk 0:00:16.6]} 56... Rd8 {[%clk 0:00:04.5]} 57. a5 {[%clk
0:00:16.7]} 57... Re8+ {[%clk 0:00:04.2]} 58. Kd3 {[%clk 0:00:17.3]} 58... Rd8
{[%clk 0:00:04.7]} 59. Kc3 {[%clk 0:00:17.4]} 59... Bb7 {[%clk 0:00:04.6]} 60.
Be5 {[%clk 0:00:17.4]} 60... Rc8 {[%clk 0:00:04.7]} 61. Kd4 {[%clk 0:00:17.4]}
61... Ka8 {[%clk 0:00:04.9]} 62. b5 {[%clk 0:00:17.1]} 62... Rxc7 {[%clk
0:00:04.3]} 63. Bxc7 {[%clk 0:00:15.9]} 63... Bc8 {[%clk 0:00:04.5]} 64. Kc5
{[%clk 0:00:16.8]} 64... Bd7 {[%clk 0:00:04.5]} 65. Bf4 {[%clk 0:00:17.3]} 65...
Kb7 {[%clk 0:00:04.4]} 66. Bd2 {[%clk 0:00:17.4]} 66... Ka8 {[%clk 0:00:05.3]}
67. a6 {[%clk 0:00:17.2]} 67... Bc8 {[%clk 0:00:05.9]} 68. Be3 {[%clk
0:00:16.4]} 68... Bb7 {[%clk 0:00:06.8]} 69. axb7+ {[%clk 0:00:14]} 69... Kxb7
{[%clk 0:00:07.7]} 70. Bf2 {[%clk 0:00:14.3]} 1-0

[Event "*** Titled Tuesday Blitz"]
[Site "Chess.com"]
[Date "2021.04.06"]
[Round "10"]
[White "superchess02"]
[Black "bazar-wokzal"]
[Result "1-0"]
[WhiteElo "2821"]
[BlackElo "2592"]
[TimeControl "180+1"]
[EndTime "11:57:39 PDT"]
[Termination "superchess02 won by resignation"]

1. d4 {[%clk 0:03:00.9]} 1... Nf6 {[%clk 0:02:59.5]} 2. c4 {[%clk 0:03:01.8]}
2... Nc6 {[%clk 0:02:59.5]} 3. Nf3 {[%clk 0:03:01.3]} 3... e6 {[%clk 0:02:59.9]}
4. Nc3 {[%clk 0:03:00.6]} 4... Bb4 {[%clk 0:02:59.5]} 5. Bg5 {[%clk 0:03:00.8]}
5... h6 {[%clk 0:02:59]} 6. Bxf6 {[%clk 0:03:00.8]} 6... Bxc3+ {[%clk
0:02:57.9]} 7. bxc3 {[%clk 0:03:00.3]} 7... Qxf6 {[%clk 0:02:58.8]} 8. e3 {[%clk
0:02:59.9]} 8... d6 {[%clk 0:02:58.8]} 9. Rb1 {[%clk 0:02:59.8]} 9... O-O {[%clk
0:02:57.7]} 10. Bd3 {[%clk 0:02:58.8]} 10... e5 {[%clk 0:02:57.3]} 11. O-O
{[%clk 0:02:58.5]} 11... Rb8 {[%clk 0:02:55.4]} 12. Nd2 {[%clk 0:02:56.1]} 12...
Qe7 {[%clk 0:02:50]} 13. Kh1 {[%clk 0:02:46.7]} 13... f5 {[%clk 0:02:44.2]} 14.
f4 {[%clk 0:02:42.6]} 14... e4 {[%clk 0:02:43.6]} 15. Be2 {[%clk 0:02:42.1]}
15... b6 {[%clk 0:02:41.5]} 16. g4 {[%clk 0:02:41.6]} 16... fxg4 {[%clk
0:02:39.7]} 17. Bxg4 {[%clk 0:02:42.5]} 17... Bxg4 {[%clk 0:02:39.7]} 18. Qxg4
{[%clk 0:02:43]} 18... Kh8 {[%clk 0:02:34.1]} 19. Rg1 {[%clk 0:02:43]} 19...
Rbe8 {[%clk 0:02:27.3]} 20. Rb5 {[%clk 0:02:36.2]} 20... Rf6 {[%clk 0:02:24.3]}
21. Rh5 {[%clk 0:02:11.5]} 21... Qf7 {[%clk 0:02:20.7]} 22. Rh4 {[%clk 0:02:08]}
22... Na5 {[%clk 0:02:16.9]} 23. d5 {[%clk 0:01:50.6]} 23... Nb7 {[%clk
0:02:09.3]} 24. Nb3 {[%clk 0:01:49.2]} 24... Nc5 {[%clk 0:02:06.7]} 25. Nd4
{[%clk 0:01:49.1]} 25... Kh7 {[%clk 0:01:55.1]} 26. Rg2 {[%clk 0:01:15.6]} 26...
Nd3 {[%clk 0:01:44.9]} 27. Ne6 {[%clk 0:01:07.5]} 27... Rexe6 {[%clk 0:01:27.7]}
28. dxe6 {[%clk 0:01:08.4]} 28... Rxe6 {[%clk 0:01:27.5]} 29. f5 {[%clk
0:00:58.8]} 29... Re5 {[%clk 0:01:20.8]} 30. Rh5 {[%clk 0:00:53.7]} 30... Ne1
{[%clk 0:01:02.6]} 31. Qg6+ {[%clk 0:00:50.7]} 31... Kg8 {[%clk 0:00:58]} 32.
Rg3 {[%clk 0:00:24.1]} 32... Qxg6 {[%clk 0:00:51.4]} 33. Rxg6 {[%clk 0:00:25]}
33... Kf7 {[%clk 0:00:50.2]} 34. Rg4 {[%clk 0:00:24.3]} 34... Nc2 {[%clk
0:00:44.2]} 35. Rh3 {[%clk 0:00:20.5]} 35... Rxf5 {[%clk 0:00:42.8]} 36. Rxe4
{[%clk 0:00:20]} 36... Ne1 {[%clk 0:00:28.4]} 37. Rf4 {[%clk 0:00:18.3]} 37...
Rxf4 {[%clk 0:00:25.5]} 38. exf4 {[%clk 0:00:19.2]} 38... Nc2 {[%clk 0:00:25.8]}
39. Rd3 {[%clk 0:00:18.9]} 39... Na3 {[%clk 0:00:25.6]} 40. Rd4 {[%clk
0:00:18.8]} 40... Kf6 {[%clk 0:00:19.9]} 41. Kg2 {[%clk 0:00:18.5]} 41... Kf5
{[%clk 0:00:19.5]} 42. Kf3 {[%clk 0:00:18.3]} 42... a5 {[%clk 0:00:14.9]} 43.
Rd5+ {[%clk 0:00:18.2]} 43... Ke6 {[%clk 0:00:14.5]} 44. Rd4 {[%clk 0:00:17.6]}
44... Kf5 {[%clk 0:00:14.3]} 45. h4 {[%clk 0:00:16.9]} 45... g6 {[%clk
0:00:13.6]} 46. Rd5+ {[%clk 0:00:14.9]} 46... Ke6 {[%clk 0:00:13.9]} 47. h5
{[%clk 0:00:15.5]} 47... gxh5 {[%clk 0:00:09.8]} 48. Rxh5 {[%clk 0:00:14.9]}
48... Nxc4 {[%clk 0:00:10.7]} 49. Rxh6+ {[%clk 0:00:14.5]} 49... Kf5 {[%clk
0:00:11.1]} 50. Rh5+ {[%clk 0:00:14.8]} 50... Kf6 {[%clk 0:00:11.2]} 51. Ke4
{[%clk 0:00:14.6]} 51... Nd2+ {[%clk 0:00:11.2]} 52. Kd5 {[%clk 0:00:14.7]}
52... Nb1 {[%clk 0:00:10.9]} 53. Rh3 {[%clk 0:00:13.8]} 53... Kf5 {[%clk
0:00:10.5]} 54. Rf3 {[%clk 0:00:14]} 54... Nd2 {[%clk 0:00:09.7]} 55. Rd3 {[%clk
0:00:11.8]} 55... Ne4 {[%clk 0:00:08.5]} 56. c4 {[%clk 0:00:09.6]} 56... Nc5
{[%clk 0:00:07.5]} 57. Rf3 {[%clk 0:00:09.4]} 57... Ne6 {[%clk 0:00:07.7]} 58.
Rf1 {[%clk 0:00:09]} 58... Nxf4+ {[%clk 0:00:06.2]} 59. Kc6 {[%clk 0:00:09.4]}
59... Ke4 {[%clk 0:00:06.4]} 60. Kxc7 {[%clk 0:00:09.8]} 60... d5 {[%clk
0:00:04.9]} 61. Rxf4+ {[%clk 0:00:08.7]} 61... Kxf4 {[%clk 0:00:04.1]} 62. cxd5
{[%clk 0:00:09.6]} 62... b5 {[%clk 0:00:04.6]} 63. d6 {[%clk 0:00:10]} 63... b4
{[%clk 0:00:05.2]} 64. d7 {[%clk 0:00:10.7]} 64... a4 {[%clk 0:00:06.1]} 65.
d8=Q {[%clk 0:00:10.7]} 65... b3 {[%clk 0:00:07]} 66. axb3 {[%clk 0:00:11.4]}
66... axb3 {[%clk 0:00:07.2]} 67. Qd4+ {[%clk 0:00:11.7]} 67... Kf5 {[%clk
0:00:07.2]} 68. Qb2 {[%clk 0:00:12.6]} 1-0

[Event "*** Titled Tuesday Blitz"]
[Site "Chess.com"]
[Date "2021.04.06"]
[Round "10"]
[White "ajedrez1101"]
[Black "chesslh19"]
[Result "0-1"]
[WhiteElo "2117"]
[BlackElo "2241"]
[TimeControl "180+1"]
[EndTime "11:57:45 PDT"]
[Termination "chesslh19 won by resignation"]

1. d4 {[%clk 0:03:00.4]} 1... Nf6 {[%clk 0:02:59.4]} 2. Bf4 {[%clk 0:03:00.7]}
2... d5 {[%clk 0:02:58.9]} 3. e3 {[%clk 0:03:00.5]} 3... c5 {[%clk 0:02:59.4]}
4. Nf3 {[%clk 0:02:58.5]} 4... Nc6 {[%clk 0:02:59.9]} 5. Nbd2 {[%clk 0:02:58]}
5... e6 {[%clk 0:02:54.2]} 6. c3 {[%clk 0:02:56.8]} 6... Bd6 {[%clk 0:02:38.1]}
7. Bg3 {[%clk 0:02:56.6]} 7... O-O {[%clk 0:02:32.2]} 8. Bd3 {[%clk 0:02:55.7]}
8... b6 {[%clk 0:02:28]} 9. Qe2 {[%clk 0:02:54.1]} 9... Bb7 {[%clk 0:02:26.1]}
10. Rd1 {[%clk 0:02:54]} 10... Re8 {[%clk 0:02:19.3]} 11. e4 {[%clk 0:02:51.3]}
11... Bxg3 {[%clk 0:02:01.7]} 12. hxg3 {[%clk 0:02:48.4]} 12... h6 {[%clk
0:01:45.3]} 13. e5 {[%clk 0:02:38.5]} 13... Nd7 {[%clk 0:01:42.7]} 14. Bb1
{[%clk 0:01:57.6]} 14... cxd4 {[%clk 0:01:36.5]} 15. cxd4 {[%clk 0:01:57.1]}
15... Nf8 {[%clk 0:01:33.2]} 16. g4 {[%clk 0:01:37.3]} 16... f6 {[%clk 0:01:08]}
17. Qe3 {[%clk 0:01:27.7]} 17... fxe5 {[%clk 0:01:04.2]} 18. Nxe5 {[%clk
0:00:40.1]} 18... Nxe5 {[%clk 0:01:02.6]} 19. Qxe5 {[%clk 0:00:37.6]} 19... Rc8
{[%clk 0:00:43.4]} 20. Nf3 {[%clk 0:00:26]} 20... Qc7 {[%clk 0:00:34]} 21. Qxc7
{[%clk 0:00:21.9]} 21... Rxc7 {[%clk 0:00:34.2]} 22. Ne5 {[%clk 0:00:21.1]}
22... Rec8 {[%clk 0:00:28.2]} 23. Kd2 {[%clk 0:00:20.7]} 23... Nd7 {[%clk
0:00:23]} 24. Nxd7 {[%clk 0:00:19.9]} 24... Rxd7 {[%clk 0:00:23.2]} 25. Rc1
{[%clk 0:00:20.1]} 25... Rdc7 {[%clk 0:00:23.4]} 26. Rxc7 {[%clk 0:00:19.7]}
26... Rxc7 {[%clk 0:00:24.3]} 27. Re1 {[%clk 0:00:19.7]} 27... Kf7 {[%clk
0:00:22.9]} 28. f3 {[%clk 0:00:19.6]} 28... Rc4 {[%clk 0:00:18]} 29. Ke3 {[%clk
0:00:18]} 29... a5 {[%clk 0:00:16.2]} 30. Bd3 {[%clk 0:00:18.1]} 30... Rc7
{[%clk 0:00:16.2]} 31. Kd2 {[%clk 0:00:17.2]} 31... Bc8 {[%clk 0:00:14.3]} 32.
a3 {[%clk 0:00:17.2]} 32... Bd7 {[%clk 0:00:14.3]} 33. Rc1 {[%clk 0:00:13.9]}
33... Rxc1 {[%clk 0:00:13.7]} 34. Kxc1 {[%clk 0:00:14.8]} 34... Ke7 {[%clk
0:00:14.2]} 35. Kd2 {[%clk 0:00:14.9]} 35... Kd6 {[%clk 0:00:14.6]} 36. f4
{[%clk 0:00:15.3]} 36... g5 {[%clk 0:00:13]} 37. g3 {[%clk 0:00:14]} 37... Ke7
{[%clk 0:00:11.1]} 38. Ke3 {[%clk 0:00:13.7]} 38... Kd6 {[%clk 0:00:10.8]} 39.
Be2 {[%clk 0:00:13.6]} 39... Bc8 {[%clk 0:00:11]} 40. b4 {[%clk 0:00:13.1]}
40... axb4 {[%clk 0:00:10.5]} 41. axb4 {[%clk 0:00:14]} 41... Bd7 {[%clk
0:00:11.1]} 42. Bd3 {[%clk 0:00:13.6]} 42... Bc8 {[%clk 0:00:11.1]} 43. Be2
{[%clk 0:00:13.8]} 43... Bd7 {[%clk 0:00:11.2]} 44. Bd3 {[%clk 0:00:14]} 44...
Be8 {[%clk 0:00:11]} 45. f5 {[%clk 0:00:14.2]} 45... Ke7 {[%clk 0:00:07.9]} 46.
Bc2 {[%clk 0:00:13.1]} 46... Kf6 {[%clk 0:00:08]} 47. Kf3 {[%clk 0:00:12]} 47...
Bb5 {[%clk 0:00:07.9]} 48. Bb1 {[%clk 0:00:11]} 48... Bc4 {[%clk 0:00:07.4]} 49.
Bc2 {[%clk 0:00:10.7]} 49... e5 {[%clk 0:00:05.4]} 50. dxe5+ {[%clk 0:00:10.6]}
50... Kxe5 {[%clk 0:00:06.3]} 51. Ke3 {[%clk 0:00:10.1]} 51... d4+ {[%clk
0:00:06.1]} 52. Kd2 {[%clk 0:00:10.3]} 52... Bd5 {[%clk 0:00:06.3]} 53. Bd1
{[%clk 0:00:10.7]} 53... Be4 {[%clk 0:00:06.4]} 54. Be2 {[%clk 0:00:10.8]} 54...
Bd5 {[%clk 0:00:06.2]} 55. Bd3 {[%clk 0:00:10.7]} 55... Bf3 {[%clk 0:00:06.2]}
56. Kc1 {[%clk 0:00:09.8]} 56... Bxg4 {[%clk 0:00:06.2]} 57. Kd2 {[%clk
0:00:08.1]} 57... Bxf5 {[%clk 0:00:06]} 58. Be2 {[%clk 0:00:08.5]} 58... Be4
{[%clk 0:00:05.6]} 59. Bh5 {[%clk 0:00:08.5]} 59... Bf5 {[%clk 0:00:05.4]} 60.
Be2 {[%clk 0:00:08.5]} 60... g4 {[%clk 0:00:04.7]} 61. Bd1 {[%clk 0:00:08.4]}
61... h5 {[%clk 0:00:05.1]} 62. Be2 {[%clk 0:00:08.4]} 62... h4 {[%clk
0:00:04.8]} 63. gxh4 {[%clk 0:00:08.6]} 63... g3 {[%clk 0:00:05.3]} 64. Bf1
{[%clk 0:00:08]} 64... Kf4 {[%clk 0:00:05.5]} 65. Bg2 {[%clk 0:00:08]} 65... Kg4
{[%clk 0:00:05.1]} 66. h5 {[%clk 0:00:07.3]} 66... Kxh5 {[%clk 0:00:05.1]} 67.
Ke2 {[%clk 0:00:07.9]} 67... Kg5 {[%clk 0:00:05]} 68. Kf3 {[%clk 0:00:08]} 68...
d3 {[%clk 0:00:04.6]} 69. Bf1 {[%clk 0:00:07.5]} 69... d2 {[%clk 0:00:04.5]} 70.
Be2 {[%clk 0:00:07.9]} 70... Bg4+ {[%clk 0:00:04]} 71. Ke3 {[%clk 0:00:07.3]}
71... Bxe2 {[%clk 0:00:04.2]} 72. Kxe2 {[%clk 0:00:08.2]} 72... g2 {[%clk
0:00:04.2]} 73. Kxd2 {[%clk 0:00:09.1]} 73... g1=Q {[%clk 0:00:04.3]} 0-1